bitfinex-derivatives/quotes_BTCF0:USTF0_20241110
["timestamp","ask_amount","ask_price","bid_price","bid_amount"]
[1731269899035,0.00014862,79359.0,79358.0,0.37135363]
[1731269900531,0.3608,79379.0,79358.0,0.39339811]
[1731269900843,0.07565914,79378.0,79359.0,0.02204475]
[1731269901046,0.3608,79379.0,79366.0,0.18304933]
[1731269901436,0.00014069,79372.0,79367.0,0.18825252]
[1731269901631,0.00014069,79372.0,79365.0,0.00314012]
[1731269901843,0.3608,79369.0,79366.0,0.17884]
[1731269903642,0.3608,79369.0,79367.0,0.1788]
[1731269903947,0.3608,79369.0,79368.0,0.1788]
[1731269904640,0.3608,79369.0,79368.0,0.36687899]
[1731269904841,0.00014069,79372.0,79368.0,0.72767899]
[1731269905048,0.00014069,79372.0,79371.0,0.18304933]
[1731269905252,0.00014069,79372.0,79371.0,0.20823085]
[1731269905443,0.0648,79398.0,79371.0,0.39533256]
[1731269905645,0.0648,79398.0,79382.0,0.54384933]
[1731269906347,0.3608,79385.0,79382.0,0.18304933]
[1731269906552,7.762e-05,79384.0,79383.0,0.1788]
[1731269909448,7.762e-05,79384.0,79382.0,0.18304933]
[1731269909637,0.07443655,79383.0,79376.0,0.3608]
[1731269909946,7.762e-05,79384.0,79372.0,0.1788]
[1731269909947,0.3608,79377.0,79372.0,0.1788]
[1731269910246,0.1227552,79376.0,79372.0,0.1788]
[1731269910449,0.0745552,79375.0,79372.0,0.1788]
[1731269910650,0.0482,79376.0,79372.0,0.1788]
[1731269910651,0.0745552,79374.0,79372.0,0.1788]
[1731269910842,0.0482,79376.0,79373.0,0.18304933]
[1731269911241,7.762e-05,79384.0,79374.0,0.18993987]
[1731269911449,7.762e-05,79384.0,79383.0,0.18304933]
[1731269912344,0.37799762,79384.0,79368.0,0.40633996]
[1731269912651,0.3608,79380.0,79369.0,0.17804]
[1731269912841,0.3608,79380.0,79371.0,0.12187729]
[1731269913253,0.3608,79380.0,79368.0,0.4032006]
[1731269913452,0.0734183,79379.0,79368.0,0.4032006]
[1731269913649,0.0734183,79378.0,79368.0,0.4032006]
[1731269913850,0.0734183,79377.0,79368.0,0.4032006]
[1731269914153,0.3608,79380.0,79368.0,0.4032006]
[1731269914154,0.0734183,79376.0,79368.0,0.4032006]
[1731269914346,0.3608,79380.0,79368.0,0.4032006]
[1731269914347,0.0734183,79375.0,79368.0,0.4032006]
[1731269914648,0.0734183,79374.0,79368.0,0.4032006]
[1731269914955,0.0734183,79373.0,79371.0,0.12187729]
[1731269915149,0.0734183,79372.0,79371.0,0.12187729]
[1731269916855,0.3608,79380.0,79371.0,0.12187729]
[1731269917053,0.07221475,79379.0,79377.0,0.12187729]
[1731269917247,0.07221475,79378.0,79377.0,0.12187729]
[1731269917445,0.07221475,79379.0,79377.0,0.12187729]
[1731269917644,0.07221475,79378.0,79377.0,0.12187729]
[1731269918656,7.762e-05,79384.0,79377.0,0.31084842]
[1731269918852,7.762e-05,79384.0,79383.0,0.12187729]
[1731269919356,7.762e-05,79384.0,79378.0,0.17804]
[1731269919357,0.07169255,79384.0,79378.0,0.17804]
[1731269919556,0.3608,79379.0,79378.0,0.17804]
[1731269919754,0.43241493,79379.0,79378.0,0.17804]
[1731269919949,0.51141849,79379.0,79370.0,0.17804]
[1731269920263,0.15061849,79378.0,79370.0,0.17804]
[1731269920456,0.15061849,79377.0,79370.0,0.17804]
[1731269920757,0.15061849,79376.0,79370.0,0.19463929]
[1731269920957,0.3608,79379.0,79370.0,0.19463929]
[1731269920958,0.15061849,79375.0,79370.0,0.19463929]
[1731269921259,0.15061849,79374.0,79370.0,0.31651658]
[1731269921449,0.15061849,79373.0,79370.0,0.31651658]
[1731269921654,0.15061849,79372.0,79370.0,0.31651658]
[1731269921962,0.07161493,79371.0,79370.0,0.31651658]
[1731269922554,0.07161493,79371.0,79370.0,0.19463929]
[1731269923150,0.15014512,79371.0,79370.0,0.19463929]
[1731269923861,0.07161493,79371.0,79370.0,0.19463929]
[1731269925557,0.15009955,79371.0,79370.0,0.19463929]
[1731269926053,0.14714703,79371.0,79370.0,0.19463929]
[1731269926354,0.03486017,79371.0,79370.0,0.38440089]
[1731269926859,0.03486017,79371.0,79370.0,0.20636089]
[1731269927058,7.762e-05,79384.0,79370.0,0.74913741]
[1731269927261,7.762e-05,79384.0,79378.0,0.12187729]
[1731269927463,7.762e-05,79384.0,79379.0,0.05143618]
[1731269927766,0.3608,79389.0,79379.0,0.23537909]
[1731269927955,0.3608,79389.0,79388.0,0.12187729]
[1731269928161,0.43945881,79389.0,79388.0,0.12187729]
[1731269928463,0.3608,79404.0,79388.0,0.31471157]
[1731269928655,0.3608,79404.0,79389.0,0.00393592]
[1731269928656,0.07874823,79399.0,79389.0,0.00393592]
[1731269928851,0.07874823,79398.0,79396.0,0.12187729]
[1731269929051,0.0514,79407.0,79397.0,0.00393543]
[1731269929259,0.3608,79422.0,79398.0,0.37784]
[1731269929459,0.09420315,79421.0,79407.0,0.12187729]
[1731269929654,0.09420315,79421.0,79408.0,0.17804]
[1731269930257,0.09361863,79421.0,79413.0,0.12187729]
[1731269930857,0.3608,79422.0,79412.0,0.3608]
[1731269931057,0.00064,79431.0,79421.0,0.3608]
[1731269931256,0.09388326,79434.0,79421.0,0.22230886]
[1731269931458,0.3608,79435.0,79422.0,0.00393399]
[1731269931459,0.3608,79428.0,79422.0,0.00393399]
[1731269931658,0.3608,79428.0,79423.0,0.18197399]
[1731269931869,0.3608,79428.0,79424.0,0.00393399]
[1731269932167,0.3608,79428.0,79420.0,0.178]
[1731269932555,0.3608,79421.0,79415.0,0.178]
[1731269932762,0.3608,79421.0,79416.0,0.00393452]
[1731269932951,0.3608,79421.0,79415.0,0.178]
[1731269933164,0.3608,79421.0,79416.0,0.00393442]
[1731269933461,0.3608,79421.0,79415.0,0.178]
[1731269933852,0.3608,79421.0,79411.0,0.02519471]
[1731269934065,0.3608,79412.0,79399.0,0.20823542]
[1731269934257,0.3608,79404.0,79399.0,0.2050835]
[1731269934567,0.07703995,79403.0,79400.0,0.18775584]
[1731269934759,0.3608,79404.0,79400.0,0.18775584]
[1731269934958,0.06630238,79403.0,79400.0,0.18775584]
[1731269935160,0.3608,79404.0,79400.0,0.18775584]
[1731269935161,0.06630238,79402.0,79400.0,0.18775584]
[1731269935360,0.06630238,79401.0,79400.0,0.18775584]
[1731269935665,0.06630238,79401.0,79399.0,0.22172542]
[1731269935865,0.06630238,79400.0,79399.0,0.22172542]
[1731269936254,0.06630238,79400.0,79399.0,0.04372542]
[1731269936464,0.07553532,79400.0,79399.0,0.01853071]
[1731269936664,0.1418377,79402.0,79399.0,0.01664192]
[1731269936852,0.1418377,79401.0,79390.0,0.00013598]
[1731269937162,0.1418377,79400.0,79390.0,0.17813598]
[1731269937363,0.3608,79404.0,79396.0,0.02519713]
[1731269937364,0.1418377,79399.0,79396.0,0.02519713]
[1731269937571,0.062926,79390.0,79375.0,0.00315192]
[1731269937769,0.3608,79379.0,79365.0,0.00315192]
[1731269938063,0.3608,79379.0,79378.0,0.01898422]
[1731269938459,0.36093598,79379.0,79378.0,0.01898422]
[1731269938766,0.36093598,79379.0,79378.0,0.01709495]
[1731269938961,0.36093598,79379.0,79373.0,0.062939]
[1731269939166,0.36093598,79379.0,79370.0,0.0001604]
[1731269939465,0.36093598,79379.0,79374.0,0.18945219]
[1731269939658,0.36093598,79379.0,79371.0,0.18945219]
[1731269939860,0.36093598,79379.0,79375.0,0.18945219]
[1731269940160,0.36093598,79379.0,79372.0,0.18885488]
[1731269940368,0.00013598,79379.0,79378.0,0.5434303]
[1731269940664,0.3608,79393.0,79379.0,0.062935]
[1731269940966,0.3608,79393.0,79380.0,0.18884172]
[1731269941153,0.3608,79393.0,79381.0,0.062933]
[1731269941357,0.3608,79393.0,79386.0,0.1826303]
[1731269941761,0.3608,79393.0,79387.0,0.18884172]
[1731269943361,0.3608,79407.0,79393.0,0.062924]
[1731269943566,0.3608,79407.0,79399.0,0.1826303]
[1731269944163,0.3608,79407.0,79394.0,0.17828]
[1731269944470,0.3608,79407.0,79395.0,0.18938769]
[1731269946468,0.3608,79407.0,79404.0,0.1826303]
[1731269946969,0.3608,79407.0,79405.0,0.18856171]
[1731269947465,0.0548,79427.0,79406.0,0.3608]
[1731269947671,0.0548,79427.0,79426.0,0.1826303]
[1731269947864,0.0525,79442.0,79426.0,0.1826303]
[1731269948054,0.0554,79438.0,79427.0,0.3608]
[1731269948762,0.0554,79438.0,79433.0,0.1826303]
[1731269948970,0.00188895,79452.0,79433.0,0.1826303]
[1731269949266,0.3608,79445.0,79441.0,0.1826303]
[1731269949774,0.0554,79451.0,79441.0,0.1826303]
[1731269950281,0.3608,79465.0,79442.0,0.18794699]
[1731269950471,0.06740751,79464.0,79449.0,0.1826303]
[1731269950659,0.3608,79465.0,79449.0,0.1826303]
[1731269951060,0.3608,79465.0,79450.0,0.18956944]
[1731269952165,0.0554,79467.0,79450.0,0.18956944]
[1731269952166,0.0554,79467.0,79456.0,0.3608]
[1731269952363,0.0554,79467.0,79457.0,0.17716]
[1731269952557,0.3608,79472.0,79464.0,0.1826303]
[1731269952962,0.36332818,79481.0,79466.0,0.3608]
[1731269952963,0.00252818,79481.0,79466.0,0.3608]
[1731269953162,0.06856243,79480.0,79477.0,0.3608]
[1731269953376,0.3608,79488.0,79478.0,0.17716]
[1731269953562,0.3608,79488.0,79483.0,0.1826303]
[1731269953872,0.3608,79488.0,79478.0,0.17716]
[1731269954372,0.3608,79488.0,79484.0,0.1826303]
[1731269956171,0.46144,79500.0,79485.0,0.18825875]
[1731269956375,0.4608,79500.0,79491.0,0.1826303]
[1731269956673,0.1,79500.0,79498.0,0.1826303]
[1731269956881,0.1,79500.0,79498.0,0.17712]
[1731269957378,0.1,79500.0,79499.0,0.17712]
[1731269957565,0.1,79500.0,79484.0,0.0001337]
[1731269957566,0.2826303,79500.0,79484.0,0.0001337]
[1731269957865,0.2826303,79500.0,79485.0,0.17712]
[1731269957866,0.3608,79495.0,79485.0,0.17712]
[1731269958566,0.3608,79495.0,79484.0,0.0001337]
[1731269958567,0.3608,79486.0,79484.0,0.0001337]
[1731269958767,0.0553,79485.0,79484.0,0.0001337]
[1731269959070,0.6153703,79485.0,79461.0,0.00312214]
[1731269959270,0.3608,79475.0,79465.0,0.01855099]
[1731269959471,0.3608,79475.0,79465.0,0.00188744]
[1731269960066,0.0001337,79474.0,79465.0,0.00188744]
[1731269961573,0.0001337,79474.0,79471.0,0.062861]
[1731269961876,0.0001337,79474.0,79473.0,0.3608]
[1731269962174,0.3608,79494.0,79481.0,0.062854]
[1731269962370,0.3608,79494.0,79482.0,0.17708]
[1731269962566,0.3608,79494.0,79482.0,0.42809891]
[1731269962765,0.3608,79494.0,79483.0,0.062852]
[1731269963182,0.3608,79494.0,79484.0,0.18902425]
[1731269963478,0.3608,79494.0,79484.0,0.25187525]
[1731269963777,0.3608,79494.0,79484.0,0.18902425]
[1731269964171,0.3608,79494.0,79485.0,0.062851]
[1731269964778,0.3608,79494.0,79482.0,0.19433319]
[1731269964979,0.3608,79494.0,79486.0,0.18835762]
[1731269965169,0.36336765,79504.0,79494.0,0.062843]
[1731269965376,0.36336765,79504.0,79483.0,0.18847865]
[1731269965377,0.0562428,79500.0,79496.0,0.3608]
[1731269965681,0.0562428,79500.0,79498.0,0.062841]
[1731269965682,0.0180172,79500.0,79498.0,0.062841]
[1731269965869,0.0180172,79500.0,79499.0,0.17704]
[1731269966074,0.0180172,79500.0,79499.0,0.36606152]
[1731269967073,0.0180172,79500.0,79499.0,0.18902152]
[1731269967282,0.0180172,79500.0,79499.0,0.36606152]
[1731269967578,0.0180172,79500.0,79499.0,0.17704]
[1731269967874,0.0180172,79500.0,79499.0,0.36593429]
[1731269968075,0.3788172,79500.0,79490.0,0.0031125]
[1731269968282,0.3608,79491.0,79490.0,0.0031125]
[1731269968576,0.3608,79491.0,79479.0,0.1826303]
[1731269969071,0.3608,79489.0,79479.0,0.1826303]
[1731269969272,0.3608,79489.0,79480.0,0.25068081]
[1731269969580,0.3608,79489.0,79480.0,0.18782681]
[1731269969879,0.3608,79489.0,79481.0,0.17624]
[1731269970478,0.3608,79489.0,79476.0,0.02515365]
[1731269970479,0.3608,79482.0,79476.0,0.02515365]
[1731269971576,0.3608,79482.0,79465.0,0.01902546]
[1731269971782,0.3608,79468.0,79465.0,0.00188744]
[1731269975078,0.3608,79468.0,79459.0,0.01659047]
[1731269978472,0.3608,79461.0,79459.0,0.01659047]
[1731269980682,0.440431,79460.0,79459.0,9.382e-05]
[1731269980984,0.50483118,79460.0,79437.0,0.20143365]
[1731269981183,0.50483118,79460.0,79435.0,0.00188815]
[1731269981184,0.3608,79439.0,79435.0,0.00188815]
[1731269981892,9.382e-05,79438.0,79435.0,0.00188815]
[1731269982587,0.37768,79437.0,79426.0,9.178e-05]
[1731269982774,0.1826303,79435.0,79426.0,9.178e-05]
[1731269982978,0.05733107,79436.0,79400.0,0.00503643]
[1731269982979,0.5434303,79427.0,79400.0,0.00503643]
[1731269983188,0.3608,79407.0,79400.0,0.00188899]
[1731269986680,0.3608,79404.0,79400.0,0.00188899]
[1731269986982,0.3608,79404.0,79390.0,0.00010866]
[1731269987177,0.3608,79391.0,79390.0,0.00010866]
[1731269988082,0.7216,79391.0,79390.0,0.00010866]
[1731269989177,0.00013021,79403.0,79390.0,0.18273896]
[1731269989178,0.3608,79398.0,79390.0,0.18273896]
[1731269989489,0.3608,79398.0,79390.0,0.00010866]
[1731269990086,0.00013021,79403.0,79390.0,0.00010866]
[1731269990282,0.3608,79397.0,79390.0,0.00010866]
[1731269990988,0.062923,79395.0,79390.0,0.00010866]
[1731269991193,0.3608,79397.0,79390.0,0.00010866]
[1731269991488,0.3608,79391.0,79390.0,0.00010866]
[1731269994393,0.00013021,79403.0,79390.0,0.56570422]
[1731269994597,0.00013021,79403.0,79394.0,0.1826303]
[1731269994989,0.00013021,79403.0,79395.0,0.18771556]
[1731269995997,0.00013021,79403.0,79396.0,0.081]
[1731269997297,0.00013021,79403.0,79397.0,0.18839516]
[1731269997500,0.00013021,79403.0,79397.0,0.54919516]
[1731269997700,0.00013021,79403.0,79402.0,0.1826303]
[1731269997907,0.00013021,79403.0,79402.0,0.1764]
[1731269998210,0.00013021,79403.0,79402.0,0.36479516]
[1731269998706,0.00013021,79403.0,79397.0,0.3608]
[1731269999016,0.00013021,79403.0,79402.0,0.1764]
[1731270000008,0.3608,79410.0,79402.0,0.36656133]
[1731270000409,0.02518746,79432.0,79402.0,0.36656133]
[1731270000709,0.3608,79409.0,79402.0,0.36656133]
[1731270000907,5.539e-05,79408.0,79402.0,0.1764]
[1731270001515,5.539e-05,79408.0,79403.0,0.18843304]
[1731270001897,0.00072,79419.0,79408.0,0.1826303]
[1731270002104,0.3608,79432.0,79418.0,0.1826303]
[1731270002316,0.3608,79432.0,79419.0,0.0787]
[1731270002608,0.3608,79432.0,79419.0,0.26854164]
[1731270002802,0.3608,79420.0,79417.0,0.02068731]
[1731270003009,0.3608,79420.0,79409.0,0.1764]
[1731270003403,0.3608,79412.0,79406.0,0.26669424]
[1731270003607,0.3608,79412.0,79406.0,0.0779]
[1731270004912,0.3608,79420.0,79406.0,0.09840701]
[1731270005308,0.3608,79420.0,79410.0,0.1826303]
[1731270005523,0.3608,79420.0,79413.0,0.3608]
[1731270005710,0.3608,79420.0,79410.0,0.1826303]
[1731270006225,0.3608,79420.0,79406.0,0.09840701]
[1731270006607,0.3608,79420.0,79409.0,0.18861975]
[1731270006815,0.3608,79420.0,79407.0,0.18861975]
[1731270007009,0.3608,79420.0,79406.0,0.09840701]
[1731270007205,0.3608,79420.0,79408.0,0.18972085]
[1731270007610,0.3608,79420.0,79406.0,0.09840701]
[1731270007812,0.3608,79420.0,79409.0,0.18972085]
[1731270008012,0.3608,79420.0,79408.0,0.18972085]
[1731270008215,0.3608,79420.0,79406.0,0.16132001]
[1731270008522,0.05660345,79419.0,79409.0,0.19005572]
[1731270008815,0.05660345,79419.0,79406.0,0.09840701]
[1731270008816,0.05660345,79419.0,79410.0,0.2455403]
[1731270009020,0.0566774,79418.0,79410.0,0.2455403]
[1731270009216,0.0566774,79417.0,79410.0,0.1826303]
[1731270009518,0.05673317,79416.0,79406.0,0.09840701]
[1731270009715,0.05673317,79415.0,79406.0,0.09840701]
[1731270010026,0.05668959,79414.0,79409.0,0.1896671]
[1731270010210,0.3608,79420.0,79407.0,0.1896671]
[1731270010410,0.3608,79420.0,79409.0,0.062911]
[1731270010411,0.05673002,79419.0,79409.0,0.062911]
[1731270010623,0.05673002,79418.0,79414.0,0.062906]
[1731270010924,0.00064,79430.0,79418.0,0.062904]
[1731270011221,0.00305,79443.0,79407.0,0.19125319]
[1731270011222,0.06419412,79429.0,79423.0,0.3608]
[1731270011413,0.00305,79443.0,79424.0,0.71172]
[1731270011613,0.00305,79443.0,79437.0,0.1826303]
[1731270012019,0.00305,79443.0,79440.0,0.3608]
[1731270012214,0.07729719,79444.0,79441.0,0.1764]
[1731270012415,0.07729719,79444.0,79441.0,0.36544128]
[1731270012920,0.03983542,79444.0,79442.0,0.062884]
[1731270013220,0.3608,79464.0,79448.0,0.06288]
[1731270013428,0.3608,79464.0,79452.0,0.3608]
[1731270013726,0.3608,79464.0,79453.0,0.18894892]
[1731270013922,0.3608,79464.0,79453.0,0.25182492]
[1731270014119,0.08832219,79467.0,79461.0,0.1826303]
[1731270014313,0.08832219,79467.0,79462.0,0.17636]
[1731270015128,0.08832219,79467.0,79462.0,0.17186001]
[1731270016623,0.3608,79466.0,79453.0,0.00312813]
[1731270016810,0.3608,79466.0,79452.0,0.3608]
[1731270017014,0.3608,79466.0,79463.0,0.1826303]
[1731270017228,0.08832219,79467.0,79464.0,0.062867]
[1731270017527,0.08832219,79467.0,79465.0,0.062866]
[1731270017721,0.08832219,79467.0,79466.0,0.17508]
[1731270018034,0.08832219,79467.0,79462.0,0.3608]
[1731270018219,0.08832219,79467.0,79456.0,0.17508]
[1731270018419,0.08832219,79467.0,79456.0,0.19571084]
[1731270020127,0.45074485,79470.0,79456.0,0.19571084]
[1731270020128,0.36144,79470.0,79456.0,0.19571084]
[1731270020329,0.3608,79470.0,79456.0,0.19571084]
[1731270021229,0.36144,79477.0,79469.0,0.1826303]
[1731270021230,0.00064,79477.0,79469.0,0.1826303]
[1731270021419,0.3608,79485.0,79469.0,0.1826303]
[1731270021620,0.3608,79482.0,79464.0,0.3608]
[1731270022124,0.3608,79482.0,79465.0,0.18877034]
[1731270022715,0.3608,79482.0,79467.0,0.062865]
[1731270023428,0.3608,79482.0,79464.0,0.3608]
[1731270023834,0.3608,79482.0,79465.0,0.18806577]
[1731270025436,0.3608,79482.0,79467.0,0.1826303]
[1731270026526,0.6608,79482.0,79462.0,0.0031021]
[1731270026729,0.062868,79464.0,79460.0,0.02046839]
[1731270026932,0.9042303,79468.0,79443.0,0.00010354]
[1731270026933,0.3608,79461.0,79443.0,0.00010354]
[1731270027121,0.3608,79452.0,79445.0,0.02518093]
[1731270027626,0.3608,79452.0,79446.0,0.02285932]
[1731270027926,0.35971189,79452.0,79446.0,0.00188782]
[1731270028332,0.35971189,79452.0,79446.0,0.18451812]
[1731270028523,0.3608,79461.0,79447.0,0.54934685]
[1731270029943,0.3608,79461.0,79454.0,0.1826303]
[1731270030636,0.3608,79461.0,79455.0,0.18849932]
[1731270032426,0.3608,79476.0,79455.0,0.18849932]
[1731270032627,0.3608,79476.0,79467.0,0.1826303]
[1731270032931,0.3608,79484.0,79477.0,0.062857]
[1731270033135,0.3608,79484.0,79483.0,0.1826303]
[1731270033636,0.3608,79484.0,79483.0,0.36400834]
[1731270034033,0.3608,79492.0,79483.0,0.36400834]
[1731270034340,0.3794572,79500.0,79484.0,0.4431]
[1731270034538,0.3788172,79500.0,79491.0,0.1826303]
[1731270035032,0.3788172,79500.0,79492.0,0.18977912]
[1731270035738,0.3788172,79500.0,79486.0,0.3608]
[1731270038132,0.3788172,79500.0,79490.0,0.1826303]
[1731270038726,0.3788172,79500.0,79486.0,0.3608]
[1731270039134,0.05964193,79499.0,79490.0,0.1826303]
[1731270039343,0.3795372,79500.0,79490.0,0.1826303]
[1731270039639,0.3788172,79500.0,79490.0,0.1826303]
[1731270040238,0.05986486,79499.0,79490.0,0.1826303]
[1731270040439,0.3795372,79500.0,79490.0,0.1826303]
[1731270040736,0.3788172,79500.0,79490.0,0.1826303]
[1731270041240,0.05995501,79499.0,79486.0,0.3608]
[1731270041443,0.05995501,79498.0,79490.0,0.175]
[1731270041628,0.05995501,79497.0,79490.0,0.175]
[1731270041828,0.05995501,79496.0,79490.0,0.175]
[1731270042032,0.3608,79517.0,79498.0,0.06284]
[1731270042237,0.3608,79517.0,79512.0,0.13097669]
[1731270042238,0.20932174,79516.0,79512.0,0.13097669]
[1731270042432,0.12844092,79515.0,79512.0,0.13097669]
[1731270042636,0.12844092,79514.0,79512.0,0.13097669]
[1731270042836,0.12844092,79513.0,79506.0,0.175]
[1731270043041,0.12844092,79512.0,79506.0,0.175]
[1731270043335,0.12844092,79511.0,79506.0,0.175]
[1731270043542,0.12844092,79510.0,79507.0,0.0772]
[1731270043741,0.12844092,79509.0,79507.0,0.0772]
[1731270043940,0.12844092,79508.0,79507.0,0.0772]
[1731270044243,0.12444092,79508.0,79506.0,0.17496]
[1731270044446,0.06005537,79507.0,79506.0,0.17496]
[1731270044834,0.3608,79510.0,79506.0,0.17496]
[1731270046843,0.05917007,79509.0,79506.0,0.17496]
[1731270047039,0.05917007,79508.0,79506.0,0.17496]
[1731270047242,0.05917007,79507.0,79506.0,0.17496]
[1731270047438,0.3608,79510.0,79506.0,0.17496]
[1731270047638,0.05904463,79509.0,79506.0,0.02082207]
[1731270047843,0.3608,79510.0,79506.0,0.17416]
[1731270048039,0.0590373,79509.0,79506.0,0.17416]
[1731270048240,0.3608,79510.0,79506.0,0.17416]
[1731270049235,0.3608,79515.0,79506.0,0.17416]
[1731270049437,0.3608,79530.0,79514.0,0.1826303]
[1731270049438,0.3608,79523.0,79514.0,0.1826303]
[1731270049638,0.12742876,79522.0,79514.0,0.1826303]
[1731270049838,0.12742876,79521.0,79514.0,0.1826303]
[1731270050137,0.12742876,79520.0,79514.0,0.1826303]
[1731270050334,0.05957928,79519.0,79514.0,0.1826303]
[1731270050541,0.3608,79523.0,79514.0,0.1826303]
[1731270050744,0.05969052,79522.0,79509.0,0.062832]
[1731270050940,0.3608,79523.0,79501.0,0.3639132]
[1731270050941,0.3608,79514.0,79501.0,0.3608]
[1731270051148,0.3608,79514.0,79502.0,0.17416]
[1731270051945,0.05904725,79513.0,79501.0,0.062838]
[1731270052138,0.3608,79504.0,79502.0,0.17412]
[1731270052549,0.3608,79514.0,79509.0,0.062832]
[1731270052744,0.3608,79514.0,79503.0,0.3608]
[1731270052745,0.3608,79514.0,79513.0,0.1826303]
[1731270052944,0.42005073,79514.0,79513.0,0.1826303]
[1731270053145,0.05925073,79514.0,79513.0,0.1826303]
[1731270053351,0.36148,79520.0,79513.0,0.59392515]
[1731270053352,0.05949676,79519.0,79513.0,0.59392515]
[1731270053647,0.12741724,79519.0,79518.0,0.1826303]
[1731270053853,0.05319275,79519.0,79518.0,0.4195753]
[1731270054050,0.3608,79538.0,79518.0,0.4195753]
[1731270054051,0.07782852,79534.0,79518.0,0.54556951]
[1731270054259,0.07782852,79541.0,79522.0,0.423622]
[1731270054557,0.3608,79542.0,79525.0,0.1826303]
[1731270054851,0.3608,79542.0,79530.0,0.062815]
[1731270055441,0.3608,79542.0,79525.0,0.2454493]
[1731270055852,0.3608,79542.0,79526.0,0.18785602]
[1731270057150,0.3608,79531.0,79522.0,0.02077111]
[1731270057444,0.3608,79531.0,79506.0,0.3608]
[1731270057445,0.3608,79531.0,79520.0,0.1826303]
[1731270058649,0.36152,79542.0,79528.0,0.1826303]
[1731270058856,0.36152,79542.0,79529.0,0.17412]
[1731270058857,0.3608,79542.0,79529.0,0.17412]
[1731270059073,0.3608,79542.0,79529.0,0.36275776]
[1731270060459,0.3608,79542.0,79529.0,0.17412]
[1731270060867,0.3608,79542.0,79529.0,0.19517098]
[1731270061856,0.05809563,79541.0,79530.0,0.37153232]
[1731270062054,0.3608,79542.0,79531.0,0.062814]
[1731270062055,0.05821212,79540.0,79531.0,0.062814]
[1731270062263,0.0582773,79539.0,79531.0,0.062814]
[1731270062572,0.0582773,79538.0,79532.0,0.18965851]
[1731270062861,0.0582773,79537.0,79531.0,0.18965851]
[1731270063057,0.0582773,79536.0,79531.0,0.18965851]
[1731270063258,0.05831884,79535.0,79530.0,0.1826303]
[1731270063452,0.05830353,79534.0,79531.0,0.36368516]
[1731270063658,0.05830353,79533.0,79531.0,0.36368516]
[1731270063856,0.05830353,79532.0,79531.0,0.36368516]
[1731270064167,0.05830353,79541.0,79531.0,0.36368516]
[1731270064366,0.12478305,79541.0,79531.0,0.36368516]
[1731270064557,0.12478305,79541.0,79532.0,0.17408]
[1731270065586,0.12478305,79541.0,79533.0,0.17408]
[1731270066258,0.12478305,79541.0,79534.0,0.0825]
[1731270066859,0.12478305,79541.0,79529.0,0.02105098]
[1731270066860,0.3608,79535.0,79529.0,0.02105098]
[1731270067162,0.4187081,79534.0,79519.0,0.0822]
[1731270067361,0.3608,79523.0,79519.0,0.0822]
[1731270067557,0.0579081,79522.0,79519.0,0.0822]
[1731270067759,0.0579081,79521.0,79519.0,0.0822]
[1731270067960,0.0579081,79520.0,79519.0,0.0822]
[1731270068271,0.00076,79523.0,79519.0,0.0822]
[1731270068454,0.0818,79533.0,79519.0,0.0822]
[1731270069559,0.3608,79527.0,79519.0,0.0822]
[1731270070868,0.05733074,79526.0,79519.0,0.0822]
[1731270071063,0.36144,79527.0,79519.0,0.0822]
[1731270071269,0.05740665,79526.0,79519.0,0.0822]
[1731270071461,0.3608,79527.0,79519.0,0.0822]
[1731270071462,0.05740665,79525.0,79519.0,0.0822]
[1731270071660,0.36152,79527.0,79519.0,0.0822]
[1731270071868,0.3608,79527.0,79519.0,0.0822]
[1731270073664,0.3608,79527.0,79521.0,0.12144537]
[1731270074090,0.05753203,79526.0,79521.0,0.12144537]
[1731270074271,0.32823189,79534.0,79526.0,0.062819]
[1731270074574,0.0580334,79533.0,79530.0,0.062815]
[1731270074757,0.32823189,79534.0,79533.0,0.12144537]
[1731270074957,0.38636705,79534.0,79533.0,0.12144537]
[1731270075970,0.05813516,79534.0,79533.0,0.12144537]
[1731270076164,0.3608,79549.0,79533.0,0.12144537]
[1731270076364,0.05819746,79548.0,79533.0,0.12144537]
[1731270076570,0.3608,79549.0,79533.0,0.12144537]
[1731270076571,0.05819746,79547.0,79533.0,0.12144537]
[1731270076872,0.05819746,79546.0,79530.0,0.062815]
[1731270077176,0.05819746,79545.0,79531.0,0.18864022]
[1731270077466,0.3608,79542.0,79531.0,0.18864022]
[1731270077671,0.05819746,79541.0,79531.0,0.18864022]
[1731270079171,0.05819746,79541.0,79531.0,0.25145422]
[1731270079666,0.05819746,79541.0,79537.0,0.18208137]
[1731270079869,0.05819746,79541.0,79540.0,0.3608]
[1731270079870,0.02660748,79541.0,79540.0,0.3608]
[1731270080064,0.00188668,79558.0,79544.0,0.062804]
[1731270080269,0.00188668,79558.0,79551.0,0.18208137]
[1731270080270,0.06719636,79557.0,79551.0,0.18208137]
[1731270080464,0.00188668,79558.0,79545.0,0.17332]
[1731270081873,0.3608,79557.0,79545.0,0.17332]
[1731270083074,0.3608,79557.0,79546.0,0.17332]
[1731270084082,0.3608,79557.0,79543.0,0.02050241]
[1731270084382,0.3608,79544.0,79538.0,0.076]
[1731270084976,0.3608,79544.0,79538.0,0.09702949]
[1731270087480,0.3608,79544.0,79539.0,0.18973859]
[1731270087777,0.3608,79544.0,79538.0,0.09702949]
[1731270087982,0.3608,79544.0,79538.0,0.15983849]
[1731270088168,0.3608,79544.0,79539.0,0.18870086]
[1731270088375,0.3608,79544.0,79538.0,0.09702949]
[1731270092682,0.3608,79546.0,79538.0,0.09702949]
[1731270093178,0.3608,79557.0,79545.0,0.18208137]
[1731270093368,0.3608,79549.0,79539.0,0.18867373]
[1731270093570,0.3608,79549.0,79538.0,0.09702949]
[1731270095379,0.3608,79549.0,79547.0,0.18208137]
[1731270095777,0.3608,79549.0,79548.0,0.36122935]
[1731270098472,0.3608,79555.0,79548.0,0.36122935]
[1731270098881,0.3608,79555.0,79541.0,0.12134923]
[1731270099085,0.062818,79535.0,79521.0,0.0031121]
[1731270099272,0.3608,79522.0,79515.0,0.0762]
[1731270099582,0.3608,79522.0,79521.0,0.12134923]
[1731270100481,0.3608,79523.0,79521.0,0.37277704]
[1731270100689,0.3608,79523.0,79522.0,0.19934923]
[1731270100980,0.3608,79523.0,79522.0,0.38794904]
[1731270102487,0.3608,79538.0,79522.0,0.38794904]
[1731270102678,0.3608,79538.0,79531.0,0.12134923]
[1731270102991,0.3608,79538.0,79532.0,0.18784743]
[1731270103287,0.3608,79550.0,79532.0,0.18784743]